[Event "Titled Tuesday Blitz June 21 Late 2022"]
[White "Artemenko, Oleg"]
[Black "Barria Santos, Jose Guilherme"]
[WhiteFideId "14201798"]
[BlackFideId "1939300"]
[WhiteElo "2596"]
[BlackElo "2471"]
[Result "0-1"]
[Round "07"]
[TimeControl "180+1"]
[Date "2022.06.22"]
[WhiteClock "0:00:19"]
[BlackClock "0:00:07"]

1. e4 {[%clk 0:03:00]}  c5 {[%clk 0:02:55]} 2. Nf3 {[%clk 0:03:00]}  d6 {[%clk 0:02:55]} 3. d4 {[%clk 0:03:00]}  cxd4 {[%clk 0:02:56]} 4. Nxd4 {[%clk 0:03:00]}  Nf6 {[%clk 0:02:56]} 5. Nc3 {[%clk 0:03:01]}  a6 {[%clk 0:02:57]} 6. h3 {[%clk 0:03:01]}  e5 {[%clk 0:02:50]} 7. Nde2 {[%clk 0:02:59]}  h5 {[%clk 0:02:51]} 8. g3 {[%clk 0:02:59]}  Be6 {[%clk 0:02:51]} 9. Bg2 {[%clk 0:02:59]}  Be7 {[%clk 0:02:51]} 10. O-O {[%clk 0:03:00]}  Nbd7 {[%clk 0:02:51]} 11. a4 {[%clk 0:03:00]}  Rc8 {[%clk 0:02:50]} 12. Be3 {[%clk 0:02:58]}  O-O {[%clk 0:02:34]} 13. b3 {[%clk 0:02:58]}  Qa5 {[%clk 0:02:24]} 14. Qd2 {[%clk 0:02:51]}  Bd8 {[%clk 0:02:04]} 15. Qxd6 {[%clk 0:02:34]}  Rxc3 {[%clk 0:01:58]} 16. Nxc3 {[%clk 0:02:31]}  Qxc3 {[%clk 0:01:58]} 17. Qd2 {[%clk 0:02:29]}  Qxd2 {[%clk 0:01:52]} 18. Bxd2 {[%clk 0:02:30]}  Bb6 {[%clk 0:01:51]} 19. c4 {[%clk 0:02:28]}  a5 {[%clk 0:01:25]} 20. Rfd1 {[%clk 0:02:22]}  Bd4 {[%clk 0:01:24]} 21. Rab1 {[%clk 0:02:15]}  b6 {[%clk 0:01:22]} 22. Be3 {[%clk 0:01:55]}  Bxe3 {[%clk 0:01:18]} 23. fxe3 {[%clk 0:01:56]}  Rc8 {[%clk 0:01:11]} 24. Bf3 {[%clk 0:01:48]}  Bxh3 {[%clk 0:01:07]} 25. Rd6 {[%clk 0:01:45]}  Kf8 {[%clk 0:01:06]} 26. Rbd1 {[%clk 0:01:44]}  Ke7 {[%clk 0:01:05]} 27. Kh1 {[%clk 0:01:37]}  Be6 {[%clk 0:01:04]} 28. Kh2 {[%clk 0:01:31]}  g5 {[%clk 0:01:03]} 29. Kg1 {[%clk 0:01:28]}  g4 {[%clk 0:01:03]} 30. Bg2 {[%clk 0:01:28]}  Ne8 {[%clk 0:01:02]} 31. R6d2 {[%clk 0:01:26]}  Nc5 {[%clk 0:01:01]} 32. Rb1 {[%clk 0:01:25]}  Nd6 {[%clk 0:00:58]} 33. b4 {[%clk 0:01:15]}  Ncxe4 {[%clk 0:00:52]} 34. Bxe4 {[%clk 0:01:09]}  Nxe4 {[%clk 0:00:52]} 35. Rc2 {[%clk 0:01:09]}  Nxg3 {[%clk 0:00:25]} 36. Rbb2 {[%clk 0:00:31]}  Ne4 {[%clk 0:00:21]} 37. bxa5 {[%clk 0:00:26]}  bxa5 {[%clk 0:00:21]} 38. Rb5 {[%clk 0:00:27]}  Rc5 {[%clk 0:00:22]} 39. Rxc5 {[%clk 0:00:23]}  Nxc5 {[%clk 0:00:22]} 40. Rb2 {[%clk 0:00:23]}  h4 {[%clk 0:00:20]} 41. Rb5 {[%clk 0:00:23]}  Nd3 {[%clk 0:00:18]} 42. Rxa5 {[%clk 0:00:21]}  g3 {[%clk 0:00:18]} 43. Kg2 {[%clk 0:00:21]}  Ne1+ {[%clk 0:00:14]} 44. Kf1 {[%clk 0:00:21]}  h3 {[%clk 0:00:13]} 45. Rxe5 {[%clk 0:00:20]}  h2 {[%clk 0:00:11]} 46. Rh5 {[%clk 0:00:20]}  g2+ {[%clk 0:00:11]} 47. Kxe1 {[%clk 0:00:19]}  h1=Q+ {[%clk 0:00:12]} 48. Kd2 {[%clk 0:00:20]}  Qxh5 {[%clk 0:00:12]} 49. Kc3 {[%clk 0:00:21]}  g1=Q {[%clk 0:00:12]} 50. c5 {[%clk 0:00:21]}  Qxe3+ {[%clk 0:00:09]} 51. Kb2 {[%clk 0:00:21]}  Qhe5+ {[%clk 0:00:08]} 52. Kb1 {[%clk 0:00:20]}  Qd3+ {[%clk 0:00:08]} 53. Kc1 {[%clk 0:00:19]}  Qed4 {[%clk 0:00:07]} 54. c6 {[%clk 0:00:19]}  Qb4 {[%clk 0:00:07]} 55. c7 {[%clk 0:00:19]}  Qbc3# {[%clk 0:00:07]} 0-1


[Site "https://www.chess.com"]

[Event "Titled Tuesday Blitz June 21 Late 2022"]
[White "Avazkhonov, Alikhon"]
[Black "Tologon tegin, Semetei"]
[WhiteFideId "14208504"]
[BlackFideId "13800574"]
[WhiteElo "1739"]
[BlackElo "2174"]
[Result "0-1"]
[Round "07"]
[TimeControl "180+1"]
[Date "2022.06.22"]
[WhiteClock "0:00:02"]
[BlackClock "0:00:28"]

1. d4 {[%clk 0:03:00]}  d5 {[%clk 0:02:54]} 2. c4 {[%clk 0:03:00]}  e6 {[%clk 0:02:54]} 3. Nc3 {[%clk 0:03:01]}  Nf6 {[%clk 0:02:55]} 4. cxd5 {[%clk 0:03:01]}  exd5 {[%clk 0:02:56]} 5. Bg5 {[%clk 0:03:01]}  c6 {[%clk 0:02:55]} 6. e3 {[%clk 0:03:01]}  Bf5 {[%clk 0:02:54]} 7. Qf3 {[%clk 0:03:01]}  Bg6 {[%clk 0:02:53]} 8. Bxf6 {[%clk 0:03:02]}  Qxf6 {[%clk 0:02:53]} 9. Qxf6 {[%clk 0:03:02]}  gxf6 {[%clk 0:02:54]} 10. h4 {[%clk 0:03:02]}  h5 {[%clk 0:02:54]} 11. Nh3 {[%clk 0:03:03]}  Nd7 {[%clk 0:02:53]} 12. Nf4 {[%clk 0:03:03]}  Bd6 {[%clk 0:02:53]} 13. Nxg6 {[%clk 0:02:37]}  fxg6 {[%clk 0:02:28]} 14. O-O-O {[%clk 0:02:37]}  a5 {[%clk 0:02:25]} 15. e4 {[%clk 0:02:35]}  dxe4 {[%clk 0:02:22]} 16. Nxe4 {[%clk 0:02:36]}  Be7 {[%clk 0:02:22]} 17. d5 {[%clk 0:02:20]}  cxd5 {[%clk 0:02:10]} 18. Rxd5 {[%clk 0:02:21]}  f5 {[%clk 0:02:06]} 19. Bb5 {[%clk 0:02:12]}  O-O-O {[%clk 0:02:06]} 20. Bxd7+ {[%clk 0:01:52]}  Rxd7 {[%clk 0:02:05]} 21. Rxa5 {[%clk 0:01:52]}  Kb8 {[%clk 0:01:47]} 22. Nc3 {[%clk 0:01:23]}  Rc8 {[%clk 0:01:37]} 23. Rd1 {[%clk 0:00:47]}  Rxd1+ {[%clk 0:01:29]} 24. Kxd1 {[%clk 0:00:48]}  Bxh4 {[%clk 0:01:27]} 25. g3 {[%clk 0:00:48]}  Bf6 {[%clk 0:01:26]} 26. Kd2 {[%clk 0:00:45]}  Bd4 {[%clk 0:01:18]} 27. f3 {[%clk 0:00:22]}  Bf2 {[%clk 0:01:09]} 28. Ne2 {[%clk 0:00:22]}  Rd8+ {[%clk 0:01:06]} 29. Kc2 {[%clk 0:00:21]}  Be1 {[%clk 0:01:05]} 30. Re5 {[%clk 0:00:18]}  Rd2+ {[%clk 0:01:04]} 31. Kc1 {[%clk 0:00:18]}  Rd3 {[%clk 0:01:04]} 32. f4 {[%clk 0:00:06]}  Bxg3 {[%clk 0:01:00]} 33. Re6 {[%clk 0:00:05]}  Rf3 {[%clk 0:00:52]} 34. Rxg6 {[%clk 0:00:05]}  Bxf4+ {[%clk 0:00:52]} 35. Kc2 {[%clk 0:00:03]}  h4 {[%clk 0:00:48]} 36. Rf6 {[%clk 0:00:01]}  Bg3 {[%clk 0:00:32]} 37. Rf8+ {[%clk 0:00:02]}  Ka7 {[%clk 0:00:31]} 38. Nd4 {[%clk 0:00:02]}  Rf2+ {[%clk 0:00:31]} 39. Kb3 {[%clk 0:00:03]}  h3 {[%clk 0:00:31]} 40. Rxf5 {[%clk 0:00:01]}  Rxf5 {[%clk 0:00:28]} 41. Nxf5 {[%clk 0:00:02]}  Bf4 {[%clk 0:00:28]} 0-1


[Site "https://www.chess.com"]

[Event "Titled Tuesday Blitz June 21 Late 2022"]
[White "Bayo Milagro, Alvaro"]
[Black "Livaic, Leon"]
[WhiteFideId "22275240"]
[BlackFideId "14531534"]
[WhiteElo "2270"]
[BlackElo "2540"]
[Result "0-1"]
[Round "07"]
[TimeControl "180+1"]
[Date "2022.06.21"]
[WhiteClock "0:01:39"]
[BlackClock "0:01:06"]

1. d4 {[%clk 0:02:57]}  e6 {[%clk 0:03:00]} 2. c4 {[%clk 0:02:57]}  d5 {[%clk 0:03:00]} 3. Nf3 {[%clk 0:02:57]}  Nf6 {[%clk 0:03:00]} 4. g3 {[%clk 0:02:58]}  Ne4 {[%clk 0:02:58]} 5. Bg2 {[%clk 0:02:57]}  f5 {[%clk 0:02:54]} 6. O-O {[%clk 0:02:57]}  Be7 {[%clk 0:02:55]} 7. Qc2 {[%clk 0:02:57]}  Nc6 {[%clk 0:02:51]} 8. Nc3 {[%clk 0:02:49]}  h5 {[%clk 0:02:47]} 9. Qb3 {[%clk 0:02:32]}  Na5 {[%clk 0:02:37]} 10. Qa4+ {[%clk 0:02:33]}  c6 {[%clk 0:02:37]} 11. Ne5 {[%clk 0:02:23]}  Nxc3 {[%clk 0:02:38]} 12. bxc3 {[%clk 0:02:23]}  Nxc4 {[%clk 0:02:38]} 13. Nxc4 {[%clk 0:02:16]}  b5 {[%clk 0:02:38]} 14. Qc2 {[%clk 0:02:14]}  bxc4 {[%clk 0:02:37]} 15. f3 {[%clk 0:02:15]}  h4 {[%clk 0:02:34]} 16. e4 {[%clk 0:02:15]}  hxg3 {[%clk 0:02:34]} 17. hxg3 {[%clk 0:02:15]}  Bd6 {[%clk 0:02:25]} 18. e5 {[%clk 0:02:09]}  Be7 {[%clk 0:02:24]} 19. Rb1 {[%clk 0:02:04]}  Kf7 {[%clk 0:02:17]} 20. Kf2 {[%clk 0:02:03]}  c5 {[%clk 0:02:15]} 21. Be3 {[%clk 0:02:03]}  Qc7 {[%clk 0:02:12]} 22. Rh1 {[%clk 0:02:00]}  Bd7 {[%clk 0:02:12]} 23. g4 {[%clk 0:02:00]}  g6 {[%clk 0:02:07]} 24. Rxh8 {[%clk 0:01:51]}  Rxh8 {[%clk 0:02:05]} 25. Rh1 {[%clk 0:01:51]}  Rxh1 {[%clk 0:02:04]} 26. Bxh1 {[%clk 0:01:52]}  cxd4 {[%clk 0:01:58]} 27. Bxd4 {[%clk 0:01:51]}  Bc5 {[%clk 0:01:58]} 28. Qd2 {[%clk 0:01:47]}  Qb6 {[%clk 0:01:54]} 29. Ke3 {[%clk 0:01:39]}  g5 {[%clk 0:01:11]} 30. gxf5 {[%clk 0:01:37]}  exf5 {[%clk 0:01:10]} 31. f4 {[%clk 0:01:38]}  gxf4+ {[%clk 0:01:07]} 32. Kxf4 {[%clk 0:01:39]}  Qh6+ {[%clk 0:01:06]} 0-1


[Site "https://www.chess.com"]

[Event "Titled Tuesday Blitz June 21 Late 2022"]
[White "Bortnyk, Mykola"]
[Black "Sarana, Alexey"]
[WhiteFideId "14120836"]
[BlackFideId "24133795"]
[WhiteElo "2582"]
[BlackElo "2666"]
[Result "1-0"]
[Round "07"]
[TimeControl "180+1"]
[Date "2022.06.21"]
[WhiteClock "0:00:11"]
[BlackClock "0:00:05"]

1. e4 {[%clk 0:03:00]}  c5 {[%clk 0:02:54]} 2. c3 {[%clk 0:03:01]}  d5 {[%clk 0:02:53]} 3. exd5 {[%clk 0:03:01]}  Qxd5 {[%clk 0:02:54]} 4. d4 {[%clk 0:03:02]}  Nc6 {[%clk 0:02:54]} 5. Be3 {[%clk 0:03:02]}  cxd4 {[%clk 0:02:53]} 6. cxd4 {[%clk 0:03:03]}  e6 {[%clk 0:02:53]} 7. Nc3 {[%clk 0:03:02]}  Qd6 {[%clk 0:02:53]} 8. Nf3 {[%clk 0:03:03]}  Nf6 {[%clk 0:02:53]} 9. Bd3 {[%clk 0:03:03]}  Be7 {[%clk 0:02:53]} 10. a3 {[%clk 0:03:03]}  O-O {[%clk 0:02:53]} 11. O-O {[%clk 0:03:04]}  b6 {[%clk 0:02:53]} 12. Qe2 {[%clk 0:03:05]}  Bb7 {[%clk 0:02:53]} 13. Rad1 {[%clk 0:03:05]}  Rac8 {[%clk 0:02:53]} 14. Rfe1 {[%clk 0:03:06]}  Qb8 {[%clk 0:02:52]} 15. Bb1 {[%clk 0:03:06]}  Rfd8 {[%clk 0:02:51]} 16. Bg5 {[%clk 0:03:01]}  h6 {[%clk 0:02:51]} 17. Bh4 {[%clk 0:03:01]}  Nh7 {[%clk 0:02:22]} 18. Bg3 {[%clk 0:02:57]}  Qa8 {[%clk 0:02:22]} 19. d5 {[%clk 0:02:52]}  exd5 {[%clk 0:02:16]} 20. Nxd5 {[%clk 0:02:46]}  Bf8 {[%clk 0:01:58]} 21. Bf5 {[%clk 0:02:13]}  Re8 {[%clk 0:01:44]} 22. Qd3 {[%clk 0:02:04]}  Rxe1+ {[%clk 0:01:32]} 23. Rxe1 {[%clk 0:02:04]}  Rd8 {[%clk 0:01:16]} 24. Bxh7+ {[%clk 0:02:03]}  Kh8 {[%clk 0:01:16]} 25. Bc7 {[%clk 0:01:32]}  Nb4 {[%clk 0:00:44]} 26. Nxb4 {[%clk 0:01:14]}  Rxd3 {[%clk 0:00:43]} 27. Bxd3 {[%clk 0:01:15]}  a5 {[%clk 0:00:32]} 28. Nc2 {[%clk 0:00:54]}  Bxf3 {[%clk 0:00:29]} 29. gxf3 {[%clk 0:00:53]}  Qd5 {[%clk 0:00:30]} 30. Be4 {[%clk 0:00:44]}  Qg5+ {[%clk 0:00:29]} 31. Bg3 {[%clk 0:00:43]}  Qd2 {[%clk 0:00:30]} 32. Kf1 {[%clk 0:00:36]}  g6 {[%clk 0:00:20]} 33. Be5+ {[%clk 0:00:35]}  Bg7 {[%clk 0:00:20]} 34. Bxg7+ {[%clk 0:00:32]}  Kxg7 {[%clk 0:00:20]} 35. Re2 {[%clk 0:00:31]}  Qc1+ {[%clk 0:00:20]} 36. Ne1 {[%clk 0:00:31]}  h5 {[%clk 0:00:20]} 37. a4 {[%clk 0:00:28]}  Qf4 {[%clk 0:00:18]} 38. Kg2 {[%clk 0:00:22]}  Qg5+ {[%clk 0:00:18]} 39. Kh1 {[%clk 0:00:21]}  Qc1 {[%clk 0:00:16]} 40. b3 {[%clk 0:00:19]}  h4 {[%clk 0:00:11]} 41. h3 {[%clk 0:00:19]}  f5 {[%clk 0:00:12]} 42. Ba8 {[%clk 0:00:18]}  Qd1 {[%clk 0:00:11]} 43. Re3 {[%clk 0:00:17]}  f4 {[%clk 0:00:10]} 44. Re4 {[%clk 0:00:16]}  Qxb3 {[%clk 0:00:10]} 45. Ng2 {[%clk 0:00:12]}  g5 {[%clk 0:00:07]} 46. Bc6 {[%clk 0:00:10]}  Qc3 {[%clk 0:00:05]} 47. Bb7 {[%clk 0:00:07]}  Qc2 {[%clk 0:00:05]} 48. Kg1 {[%clk 0:00:05]}  Qd1+ {[%clk 0:00:05]} 49. Ne1 {[%clk 0:00:04]}  Qc1 {[%clk 0:00:04]} 50. Kg2 {[%clk 0:00:03]}  Qc7 {[%clk 0:00:03]} 51. Bd5 {[%clk 0:00:04]}  Qd6 {[%clk 0:00:04]} 52. Bc4 {[%clk 0:00:04]}  Qd2 {[%clk 0:00:03]} 53. Bb5 {[%clk 0:00:04]}  Qd1 {[%clk 0:00:03]} 54. Nd3 {[%clk 0:00:04]}  Kf6 {[%clk 0:00:03]} 55. Ne5 {[%clk 0:00:05]}  Qd6 {[%clk 0:00:03]} 56. Ng4+ {[%clk 0:00:04]}  Kg7 {[%clk 0:00:04]} 57. Re5 {[%clk 0:00:04]}  Qd8 {[%clk 0:00:04]} 58. Re6 {[%clk 0:00:04]}  Qc7 {[%clk 0:00:05]} 59. Rc6 {[%clk 0:00:04]}  Qd8 {[%clk 0:00:04]} 60. Ne5 {[%clk 0:00:04]}  Qd4 {[%clk 0:00:04]} 61. Rg6+ {[%clk 0:00:04]}  Kf8 {[%clk 0:00:04]} 62. Rxg5 {[%clk 0:00:04]}  Qd2 {[%clk 0:00:02]} 63. Ng6+ {[%clk 0:00:05]}  Kf7 {[%clk 0:00:02]} 64. Rg4 {[%clk 0:00:05]}  Qb2 {[%clk 0:00:02]} 65. Nxf4 {[%clk 0:00:05]}  Kf6 {[%clk 0:00:02]} 66. Rxh4 {[%clk 0:00:06]}  Kg5 {[%clk 0:00:02]} 67. Rg4+ {[%clk 0:00:07]}  Kf5 {[%clk 0:00:02]} 68. h4 {[%clk 0:00:07]}  Qh8 {[%clk 0:00:02]} 69. Nh3 {[%clk 0:00:08]}  Kf6 {[%clk 0:00:03]} 70. Rf4+ {[%clk 0:00:08]}  Ke5 {[%clk 0:00:03]} 71. Rg4 {[%clk 0:00:09]}  Kd6 {[%clk 0:00:03]} 72. Nf4 {[%clk 0:00:08]}  Qh7 {[%clk 0:00:03]} 73. h5 {[%clk 0:00:09]}  Ke5 {[%clk 0:00:03]} 74. Kg3 {[%clk 0:00:10]}  Kf5 {[%clk 0:00:03]} 75. Bd3+ {[%clk 0:00:10]}  Kf6 {[%clk 0:00:04]} 76. Bxh7 {[%clk 0:00:10]}  b5 {[%clk 0:00:05]} 77. axb5 {[%clk 0:00:11]} 1-0


[Site "https://www.chess.com"]

[Event "Titled Tuesday Blitz June 21 Late 2022"]
[White "Cappelletto, Joshuaede"]
[Black "Janaszak, Dawid"]
[WhiteFideId "2824383"]
[BlackFideId "1119206"]
[WhiteElo "1761"]
[BlackElo "2199"]
[Result "1-0"]
[Round "07"]
[TimeControl "180+1"]
[Date "2022.06.22"]
[WhiteClock "0:00:11"]
[BlackClock "0:00:48"]

1. Nf3 {[%clk 0:03:00]}  Nc6 {[%clk 0:02:58]} 2. e4 {[%clk 0:02:57]}  e5 {[%clk 0:02:57]} 3. Bc4 {[%clk 0:02:53]}  Nf6 {[%clk 0:02:57]} 4. d4 {[%clk 0:02:52]}  exd4 {[%clk 0:02:55]} 5. O-O {[%clk 0:02:52]}  Nxe4 {[%clk 0:02:55]} 6. Re1 {[%clk 0:02:52]}  d5 {[%clk 0:02:54]} 7. Bxd5 {[%clk 0:02:53]}  Qxd5 {[%clk 0:02:55]} 8. Nc3 {[%clk 0:02:54]}  Qd7 {[%clk 0:02:55]} 9. Rxe4+ {[%clk 0:02:28]}  Be7 {[%clk 0:02:55]} 10. Nxd4 {[%clk 0:02:29]}  f5 {[%clk 0:02:50]} 11. Rf4 {[%clk 0:01:54]}  O-O {[%clk 0:02:43]} 12. Nxc6 {[%clk 0:01:53]}  Qxd1+ {[%clk 0:02:40]} 13. Nxd1 {[%clk 0:01:53]}  bxc6 {[%clk 0:02:41]} 14. Be3 {[%clk 0:01:49]}  g5 {[%clk 0:02:27]} 15. Rc4 {[%clk 0:01:45]}  Bd6 {[%clk 0:02:04]} 16. Bxg5 {[%clk 0:01:37]}  f4 {[%clk 0:02:04]} 17. g3 {[%clk 0:01:28]}  f3 {[%clk 0:01:57]} 18. Bf4 {[%clk 0:01:26]}  Be6 {[%clk 0:01:55]} 19. Bxd6 {[%clk 0:01:25]}  Bxc4 {[%clk 0:01:52]} 20. Bxf8 {[%clk 0:01:25]}  Rxf8 {[%clk 0:01:53]} 21. Ne3 {[%clk 0:01:26]}  Be2 {[%clk 0:01:52]} 22. g4 {[%clk 0:01:23]}  Kg7 {[%clk 0:01:50]} 23. h3 {[%clk 0:01:21]}  Kf6 {[%clk 0:01:50]} 24. Kh2 {[%clk 0:01:21]}  Rb8 {[%clk 0:01:46]} 25. b3 {[%clk 0:01:20]}  Ke5 {[%clk 0:01:47]} 26. c3 {[%clk 0:01:04]}  Kf4 {[%clk 0:01:40]} 27. h4 {[%clk 0:01:01]}  Rd8 {[%clk 0:01:39]} 28. g5 {[%clk 0:00:57]}  Rd2 {[%clk 0:01:36]} 29. Rg1 {[%clk 0:00:56]}  Rxa2 {[%clk 0:01:31]} 30. h5 {[%clk 0:00:54]}  Bd3 {[%clk 0:01:30]} 31. Rg4+ {[%clk 0:00:53]}  Ke5 {[%clk 0:01:30]} 32. Kg3 {[%clk 0:00:53]}  Ra1 {[%clk 0:01:26]} 33. Kxf3 {[%clk 0:00:47]}  Re1 {[%clk 0:01:26]} 34. Kg3 {[%clk 0:00:41]}  Be2 {[%clk 0:01:17]} 35. g6 {[%clk 0:00:22]}  hxg6 {[%clk 0:01:12]} 36. Rxg6 {[%clk 0:00:17]}  Rg1+ {[%clk 0:00:57]} 37. Ng2 {[%clk 0:00:12]}  Kf5 {[%clk 0:00:50]} 38. Kh2 {[%clk 0:00:11]}  Rf1 {[%clk 0:00:48]} 39. Ne3+ {[%clk 0:00:10]}  Kf4 {[%clk 0:00:48]} 40. Nxf1 {[%clk 0:00:11]} 1-0


[Site "https://www.chess.com"]

[Event "Titled Tuesday Blitz June 21 Late 2022"]
[White "Carrasco Miranda, Andres"]
[Black "Sanchez Alarcon, Juan"]
[WhiteFideId "3405990"]
[BlackFideId "3401332"]
[WhiteElo "2177"]
[BlackElo "2164"]
[Result "0-1"]
[Round "07"]
[TimeControl "180+1"]
[Date "2022.06.22"]
[WhiteClock "0:00:01"]
[BlackClock "0:00:56"]

1. d4 {[%clk 0:03:00]}  Nf6 {[%clk 0:02:58]} 2. c4 {[%clk 0:03:00]}  g6 {[%clk 0:02:58]} 3. g3 {[%clk 0:02:59]}  Bg7 {[%clk 0:02:57]} 4. Bg2 {[%clk 0:03:00]}  d6 {[%clk 0:02:57]} 5. Nc3 {[%clk 0:03:00]}  O-O {[%clk 0:02:57]} 6. Nf3 {[%clk 0:03:01]}  Nbd7 {[%clk 0:02:57]} 7. O-O {[%clk 0:03:01]}  e5 {[%clk 0:02:57]} 8. e4 {[%clk 0:03:00]}  c6 {[%clk 0:02:57]} 9. h3 {[%clk 0:03:00]}  Qb6 {[%clk 0:02:57]} 10. Re1 {[%clk 0:02:56]}  exd4 {[%clk 0:02:52]} 11. Nxd4 {[%clk 0:02:57]}  Re8 {[%clk 0:02:48]} 12. Re2 {[%clk 0:02:56]}  Nc5 {[%clk 0:02:47]} 13. Rb1 {[%clk 0:02:18]}  a5 {[%clk 0:02:45]} 14. Be3 {[%clk 0:02:07]}  Qc7 {[%clk 0:02:41]} 15. Bf4 {[%clk 0:01:58]}  Nh5 {[%clk 0:02:40]} 16. Be3 {[%clk 0:01:55]}  Nf6 {[%clk 0:02:39]} 17. Qc2 {[%clk 0:01:52]}  Bd7 {[%clk 0:02:35]} 18. Rd1 {[%clk 0:01:51]}  Rad8 {[%clk 0:02:35]} 19. f4 {[%clk 0:01:39]}  Bc8 {[%clk 0:02:29]} 20. Bf2 {[%clk 0:01:39]}  Nfd7 {[%clk 0:02:18]} 21. Ndb5 {[%clk 0:01:33]}  cxb5 {[%clk 0:02:14]} 22. Nxb5 {[%clk 0:01:33]}  Qb8 {[%clk 0:02:09]} 23. Nxd6 {[%clk 0:01:33]}  Re6 {[%clk 0:02:03]} 24. e5 {[%clk 0:01:33]}  Bf8 {[%clk 0:01:59]} 25. Ne4 {[%clk 0:01:25]}  Rde8 {[%clk 0:01:50]} 26. Ng5 {[%clk 0:01:23]}  Ra6 {[%clk 0:01:44]} 27. Bd5 {[%clk 0:01:21]}  Ne6 {[%clk 0:01:41]} 28. h4 {[%clk 0:01:18]}  Nxg5 {[%clk 0:01:39]} 29. hxg5 {[%clk 0:01:19]}  Nc5 {[%clk 0:01:38]} 30. Red2 {[%clk 0:01:11]}  Bg4 {[%clk 0:01:36]} 31. Re1 {[%clk 0:01:09]}  Bf5 {[%clk 0:01:36]} 32. Qd1 {[%clk 0:01:01]}  Qc8 {[%clk 0:01:28]} 33. Kh2 {[%clk 0:00:37]}  a4 {[%clk 0:01:25]} 34. Bd4 {[%clk 0:00:34]}  Ne6 {[%clk 0:01:22]} 35. g4 {[%clk 0:00:27]}  Nxd4 {[%clk 0:01:22]} 36. gxf5 {[%clk 0:00:21]}  Nxf5 {[%clk 0:01:20]} 37. Qf3 {[%clk 0:00:14]}  Bb4 {[%clk 0:01:18]} 38. Red1 {[%clk 0:00:11]}  Bxd2 {[%clk 0:01:17]} 39. Rxd2 {[%clk 0:00:12]}  Rb6 {[%clk 0:01:17]} 40. b3 {[%clk 0:00:11]}  axb3 {[%clk 0:01:16]} 41. axb3 {[%clk 0:00:12]}  Qc5 {[%clk 0:01:13]} 42. Kh3 {[%clk 0:00:10]}  Qb4 {[%clk 0:01:13]} 43. Rd3 {[%clk 0:00:09]}  Qe1 {[%clk 0:01:11]} 44. Bxf7+ {[%clk 0:00:06]}  Kxf7 {[%clk 0:01:09]} 45. Qd5+ {[%clk 0:00:06]}  Rbe6 {[%clk 0:01:08]} 46. Qd7+ {[%clk 0:00:05]}  R8e7 {[%clk 0:01:08]} 47. Qc8 {[%clk 0:00:06]}  Qh4+ {[%clk 0:01:07]} 48. Kg2 {[%clk 0:00:06]}  Qxf4 {[%clk 0:01:07]} 49. Qh8 {[%clk 0:00:06]}  Qxg5+ {[%clk 0:01:07]} 50. Kf1 {[%clk 0:00:05]}  Qh5 {[%clk 0:01:03]} 51. Rd8 {[%clk 0:00:04]}  Rxe5 {[%clk 0:01:00]} 52. Qf8+ {[%clk 0:00:03]}  Ke6 {[%clk 0:01:00]} 53. Qg8+ {[%clk 0:00:04]}  Kf6 {[%clk 0:00:59]} 54. Qf8+ {[%clk 0:00:04]}  Kg5 {[%clk 0:00:59]} 55. Rd2 {[%clk 0:00:03]}  Re1+ {[%clk 0:00:57]} 56. Kg2 {[%clk 0:00:04]}  Qh1+ {[%clk 0:00:56]} 57. Kf2 {[%clk 0:00:02]}  Qg1+ {[%clk 0:00:56]} 58. Kf3 {[%clk 0:00:02]}  Rf1+ {[%clk 0:00:56]} 59. Rf2 {[%clk 0:00:01]}  Rxf2# {[%clk 0:00:56]} 0-1


[Site "https://www.chess.com"]

[Event "Titled Tuesday Blitz June 21 Late 2022"]
[White "Christiansen, Johan-Sebastian"]
[Black "Swiercz, Dariusz"]
[WhiteFideId "1512668"]
[BlackFideId "1126881"]
[WhiteElo "2513"]
[BlackElo "2627"]
[Result "1-0"]
[Round "07"]
[TimeControl "180+1"]
[Date "2022.06.21"]
[WhiteClock "0:00:49"]
[BlackClock "0:00:17"]

1. e4 {[%clk 0:03:00]}  c6 {[%clk 0:02:53]} 2. d4 {[%clk 0:03:00]}  d5 {[%clk 0:02:54]} 3. Nd2 {[%clk 0:03:00]}  dxe4 {[%clk 0:02:53]} 4. Nxe4 {[%clk 0:03:01]}  Nd7 {[%clk 0:02:54]} 5. Nf3 {[%clk 0:02:59]}  Ngf6 {[%clk 0:02:54]} 6. Nxf6+ {[%clk 0:02:59]}  Nxf6 {[%clk 0:02:55]} 7. Bc4 {[%clk 0:02:59]}  Bf5 {[%clk 0:02:53]} 8. c3 {[%clk 0:02:57]}  e6 {[%clk 0:02:53]} 9. O-O {[%clk 0:02:56]}  Be7 {[%clk 0:02:54]} 10. h3 {[%clk 0:02:57]}  O-O {[%clk 0:02:54]} 11. a4 {[%clk 0:02:57]}  Qc7 {[%clk 0:02:52]} 12. Qe2 {[%clk 0:02:56]}  c5 {[%clk 0:02:44]} 13. Bg5 {[%clk 0:02:53]}  Rad8 {[%clk 0:02:35]} 14. Rfd1 {[%clk 0:02:52]}  h6 {[%clk 0:02:33]} 15. Bh4 {[%clk 0:02:51]}  Rfe8 {[%clk 0:02:15]} 16. a5 {[%clk 0:02:44]}  a6 {[%clk 0:02:15]} 17. Bg3 {[%clk 0:02:35]}  Bd6 {[%clk 0:02:01]} 18. Be5 {[%clk 0:02:31]}  cxd4 {[%clk 0:01:46]} 19. Bxd4 {[%clk 0:02:30]}  Nd7 {[%clk 0:01:23]} 20. Bb3 {[%clk 0:02:03]}  Bc5 {[%clk 0:01:19]} 21. Ba4 {[%clk 0:01:59]}  Bxd4 {[%clk 0:01:13]} 22. Rxd4 {[%clk 0:01:51]}  Rf8 {[%clk 0:01:10]} 23. Rad1 {[%clk 0:01:39]}  Nc5 {[%clk 0:01:00]} 24. Bc2 {[%clk 0:01:39]}  Rxd4 {[%clk 0:00:49]} 25. cxd4 {[%clk 0:01:38]}  Nd7 {[%clk 0:00:48]} 26. Bxf5 {[%clk 0:01:37]}  exf5 {[%clk 0:00:48]} 27. b4 {[%clk 0:01:26]}  Qd6 {[%clk 0:00:45]} 28. Qc4 {[%clk 0:01:18]}  Nf6 {[%clk 0:00:43]} 29. Ne5 {[%clk 0:01:09]}  Qd5 {[%clk 0:00:40]} 30. Qc7 {[%clk 0:01:07]}  Re8 {[%clk 0:00:28]} 31. Rc1 {[%clk 0:01:03]}  Ne4 {[%clk 0:00:21]} 32. Rc4 {[%clk 0:00:55]}  Ng5 {[%clk 0:00:17]} 33. h4 {[%clk 0:00:49]}  Ne6 {[%clk 0:00:17]} 34. Qxf7+ {[%clk 0:00:49]} 1-0


[Site "https://www.chess.com"]